fUSD/lending_fUSD_20240329
["ID","MTS","AMOUNT","RATE_DAILY","PERIOD"]
[320959663,1711721531953,-1072.53604421,0.00056,120]
[320959664,1711721531962,-25000.0,0.00056,120]
[320959665,1711721531971,-150.0,0.00056028,2]
[320959666,1711721531981,-826.18475658,0.00056043,2]
[320959667,1711721531990,-152.6,0.000561,8]
[320959668,1711721532000,-152.6,0.000561,8]
[320959669,1711721532010,-152.6,0.000561,8]
[320959670,1711721532019,-152.6,0.000561,8]
[320959671,1711721532028,-152.6,0.000561,8]
[320959672,1711721532037,-152.6,0.000561,8]
[320959673,1711721532048,-152.6,0.000561,8]
[320959674,1711721532058,-152.6,0.000561,8]
[320959675,1711721532067,-152.6,0.000561,8]
[320959676,1711721532077,-152.6,0.000561,8]
[320959677,1711721532086,-152.6,0.000561,8]
[320959678,1711721532096,-3773.44,0.000561,8]
[320959679,1711721532105,-3773.44,0.000561,8]
[320959680,1711721532115,-3773.44,0.000561,8]
[320959681,1711721532124,-3773.44,0.000561,8]
[320959682,1711721532133,-3773.44,0.000561,8]
[320959683,1711721532143,-3773.44,0.000561,8]
[320959684,1711721532153,-3773.44,0.000561,8]
[320959685,1711721532162,-3773.44,0.000561,8]
[320959686,1711721532171,-3773.44,0.000561,8]
[320959687,1711721532180,-3773.44,0.000561,8]
[320959688,1711721532190,-3773.44,0.000561,8]
[320959689,1711721532199,-3773.44,0.000561,8]
[320959690,1711721532208,-3773.44,0.000561,8]
[320959691,1711721532218,-3773.44,0.000561,8]
[320959692,1711721532228,-3773.44,0.000561,8]
[320959693,1711721532238,-3773.44,0.000561,8]
[320959694,1711721532248,-3773.44,0.000561,8]
[320959695,1711721532258,-3773.44,0.000561,8]
[320959696,1711721532268,-3773.44,0.000561,8]
[320959697,1711721532278,-3773.44,0.000561,8]
[320959698,1711721532287,-4775.0,0.00056158,120]
[320959699,1711721532297,-1081.48,0.00056158,120]
[320959700,1711721532307,-1038.05,0.00056164,120]
[320959701,1711721532317,-3311.84,0.00056164,120]
[320959702,1711721532327,-1858.0,0.000562,120]
[320959703,1711721532336,-20431.19340125,0.000562,120]
[320959704,1711721532346,-151.0,0.000562,7]
[320959705,1711721532355,-269.404899,0.000562,60]
[320959706,1711721532365,-269.404899,0.000562,60]
[320959707,1711721532374,-151.0,0.000562,120]
[320959708,1711721532384,-153.67,0.000562,120]
[320959709,1711721532394,-151.0,0.000562,120]
[320959710,1711721532403,-151.0,0.000562,120]
[320959711,1711721532412,-151.0,0.000562,120]
[320959712,1711721532422,-151.0,0.000562,120]
[320959713,1711721532432,-151.0,0.000562,120]
[320959714,1711721532441,-197.185342,0.000562,120]
[320959715,1711721532451,-197.185342,0.000562,120]
[320959716,1711721532461,-153.5685522,0.00056353,120]
[320959717,1711721532471,-153.5685522,0.00056359,120]
[320959718,1711721532481,-1038.05,0.00056438,120]
[320959719,1711721532491,-3311.84,0.00056438,120]
[320959720,1711721532500,-233.52222222,0.00056438,120]
[320959721,1711721532512,-377.0,0.00056493,30]
[320959722,1711721532521,-189.37502521,0.00056493,30]
[320959723,1711721532531,-530.45716547,0.00056493,30]
[320959724,1711721532540,-152.40212209,0.00056631,105]
[320959725,1711721532550,-1038.05,0.00056712,120]
[320959726,1711721532560,-1520.3,0.00056712,120]
[320959727,1711721532809,-3311.84,0.00056712,120]
[320959728,1711721532827,-208.25028726,0.00056767,108]
[320959729,1711721532837,-410.981688,0.000568,30]
[320959730,1711721532846,-224.25533439,0.0005689,120]
[320959731,1711721532857,-206.0,0.00056897,30]
[320959732,1711721532867,-1038.05,0.00056986,120]
[320959733,1711721532877,-3311.84,0.00056986,120]
[320959734,1711721532887,-233.52222222,0.00057041,120]
[320959735,1711721532897,-377.0,0.00057058,30]
[320959736,1711721532907,-151.0,0.00057068,120]
[320959737,1711721532917,-152.402122,0.00057131,107]
[320959738,1711721532927,-469.89,0.00057205,120]
[320959739,1711721532936,-158.30237148,0.0005722,120]
[320959740,1711721532946,-1038.05,0.0005726,120]
[320959741,1711721532956,-3311.84,0.0005726,120]
[320959742,1711721532966,-158.30237148,0.00057302,120]
[320959743,1711721532975,-151.76103172,0.00057316,72]
[320959744,1711721532985,-500.0,0.00057477,34]
[320959745,1711721532995,-158.30237148,0.00057491,120]
[320959746,1711721533006,-666.0,0.00057534,120]
[320959747,1711721533017,-1038.05,0.00057534,120]
[320959748,1711721533027,-1520.3,0.00057534,120]
[320959749,1711721533036,-3311.84,0.00057534,120]
[320959750,1711721533046,-377.0,0.00057623,30]
[320959751,1711721533055,-152.402122,0.00057631,110]
[320959752,1711721533064,-233.52222222,0.00057644,120]
[320959753,1711721533074,-157.60659149,0.0005771,120]
[320959754,1711721533084,-1258.83,0.00057774,2]
[320959755,1711721533094,-1038.05,0.00057808,120]
[320959756,1711721533103,-3311.84,0.00057808,120]
[320959757,1711721533113,-90000.0,0.0005785,120]
[320959758,1711721533122,-153.8652378,0.00057917,120]
[320959759,1711721533131,-4882.94350189,0.0005799,30]
[320959760,1711721533141,-159.30357396,0.00058015,120]
[320959761,1711721533151,-1038.05,0.00058082,120]
[320959762,1711721533161,-3311.84,0.00058082,120]
[320959763,1711721533170,-200.0,0.00058117,120]
[320959764,1711721533180,-800.0,0.00058117,120]
[320959765,1711721533190,-500.0,0.00058117,120]
[320959766,1711721533199,-200.0,0.00058117,120]
[320959767,1711721533209,-152.402122,0.00058131,112]
[320959768,1711721533218,-1081.49618554,0.00058173,36]
[320959769,1711721533228,-377.0,0.00058188,30]
[320959770,1711721533238,-158.3023715,0.00058232,120]
[320959771,1711721533247,-233.52222222,0.00058247,120]
[320959772,1711721533259,-151.0,0.00058247,120]
[320959773,1711721533268,-154.71689511,0.00058256,120]
[320959774,1711721533278,-1038.05,0.00058356,120]
[320959775,1711721533289,-500.0,0.00058356,120]
[320959776,1711721533299,-500.0,0.00058356,120]
[320959777,1711721533309,-500.0,0.00058356,120]
[320959778,1711721533318,-500.0,0.00058356,120]
[320959779,1711721533328,-500.0,0.00058356,120]
[320959780,1711721533338,-500.0,0.00058356,120]
[320959781,1711721533348,-500.0,0.00058356,120]
[320959782,1711721533358,-361.05348029,0.00058356,120]
[320959783,1711721533369,-1520.3,0.00058356,120]
[320959784,1711721533379,-3311.84,0.00058356,120]
[320959785,1711721533389,-500.0,0.00058379,90]
[320959786,1711721533399,-2082.47531551,0.0005838,7]
[320959787,1711721533409,-1291.50084436,0.0005838,7]
[320959788,1711721533419,-208.25028726,0.00058389,114]
[320959789,1711721533429,-154.75081809,0.00058389,120]
[320959790,1711721533439,-159.303574,0.00058396,120]
[320959791,1711721533449,-153.5685522,0.00058401,120]
[320959792,1711721533458,-1253.0,0.00058415,120]
[320959793,1711721533468,-157.60659149,0.00058419,120]
[320959794,1711721533478,-161.10517093,0.00058445,120]
[320959795,1711721533488,-1038.05,0.0005863,120]
[320959796,1711721533497,-3311.84,0.0005863,120]
[320959797,1711721533509,-152.402122,0.00058631,114]
[320959798,1711721533520,-826.18475658,0.00058657,2]
[320959799,1711721533530,-3674.51945434,0.00058667,58]
[320959800,1711721533540,-38962.09691535,0.0005874,15]
[320959801,1711721533550,-233.52222222,0.00058849,120]
[320959802,1711721533559,-100000.0,0.0005887,120]
[320959803,1711721533569,-196.37226732,0.000589,120]
[320959804,1711721533578,-1038.05,0.00058904,120]
[320959805,1711721533588,-3311.84,0.00058904,120]
[320959806,1711721533597,-500.0,0.00058927,90]
[320959807,1711721533607,-601.5194185,0.00059,120]
[320959808,1711721533617,-394.73,0.00059,30]
[320959809,1711721533626,-150.0,0.00059028,2]
[320959810,1711721533635,-568.10644683,0.0005909,2]
[320959811,1711721533646,-152.402122,0.00059131,116]
[320959812,1711721533655,-1038.05,0.00059178,120]
[320959813,1711721533665,-1520.3,0.00059178,120]
[320959814,1711721533674,-3311.84,0.00059178,120]
[320959815,1711721533684,-151.0,0.00059425,120]
[320959816,1711721533693,-1038.05,0.00059452,120]
[320959817,1711721533702,-3311.84,0.00059452,120]
[320959818,1711721533711,-233.52222222,0.00059452,120]
[320959819,1711721533720,-500.0,0.00059475,90]
[320959820,1711721533730,-208.71666538,0.0005949,120]
[320959821,1711721533739,-151.76103172,0.00059585,80]
[320959822,1711721533749,-3392.17,0.00059718,120]
[320959823,1711721533760,-1038.05,0.00059726,120]
[320959824,1711721533771,-3000.0,0.00059726,120]
[320959825,1711721533780,-3311.84,0.00059726,120]
[320959826,1711721533790,-227.00660083,0.00059939,120]
[320959827,1711721533799,-150.0,0.00059939,120]
[320959828,1711721533808,-150.0,0.00059939,120]
[320959829,1711721533818,-151.86884821,0.00059939,120]
[320959830,1711721533827,-150.0,0.00059939,120]
[320959831,1711721533837,-151.725298,0.00059939,120]
[320959832,1711721533847,-150.0,0.00059939,120]
[320959833,1711721533857,-469.89,0.00059945,120]
[320959834,1711721533866,-40839.49910892,0.0005998,30]
[320959835,1711721533875,-179.12658074,0.0005998,120]
[320959836,1711721533885,-1768.82,0.00059983,120]
[320959837,1711721533894,-1038.05,0.00059999,120]
[320959838,1711721533903,-1520.3,0.00059999,120]
[320959839,1711721533912,-3000.0,0.00059999,120]
[320959840,1711721533922,-3311.84,0.00059999,120]
[320959841,1711721533931,-646.78045994,0.0006,120]
[320959842,1711721533940,-23107.5896495,0.0006,120]
[320959843,1711721533949,-690.46928375,0.0006,90]
[320959844,1711721533959,-10000.0,0.0006,4]
[320959845,1711721533968,-155.0,0.0006,120]
[320959846,1711721533977,-3198.00185383,0.0006,90]
[320959847,1711721533986,-8902.02758958,0.0006,120]
[320959848,1711721533995,-1494.66562458,0.0006,7]
[320959849,1711721534004,-102715.21968018,0.0006,14]
[320959850,1711721534017,-1513.99498218,0.0006,120]
[320959851,1711721534026,-15980.95475721,0.0006,120]
[320959852,1711721534037,-5307.41597724,0.0006,14]
[320959853,1711721534046,-1999.999999,0.0006,30]
[320959854,1711721534055,-1500.2057501,0.0006,120]
[320959855,1711721534064,-910373.62499085,0.0006,60]
[320959856,1711721534073,-300270.57636717,0.0006,120]
[320959857,1711721534083,-1543.70534365,0.0006,120]
[320959858,1711721534092,-400.0,0.0006,7]
[320959859,1711721534102,-522.54570528,0.0006,30]
[320959860,1711721534111,-797.45270005,0.0006,120]
[320959861,1711721534121,-4228.9687519,0.0006,120]
[320959862,1711721534130,-151.0,0.0006,120]
[320959863,1711721534140,-152.515357,0.0006,120]
[320959864,1711721534149,-151.0,0.0006,120]
[320959865,1711721534158,-151.0,0.0006,120]
[320959866,1711721534168,-151.0,0.0006,120]
[320959867,1711721534177,-151.0,0.0006,7]
[320959868,1711721534187,-179.937103,0.0006,30]
[320959869,1711721534196,-151.0,0.0006,120]
[320959870,1711721534206,-179.937103,0.0006,30]
[320959871,1711721534216,-151.0,0.0006,120]
[320959872,1711721534226,-151.0,0.0006,120]
[320959873,1711721534235,-151.0,0.0006,120]
[320959874,1711721534245,-151.0,0.0006,120]
[320959875,1711721534254,-151.0,0.0006,120]
[320959876,1711721534266,-151.0,0.0006,120]
[320959877,1711721534275,-151.0,0.0006,120]
[320959878,1711721534284,-151.0,0.0006,120]
[320959879,1711721534293,-159.41557308,0.0006,120]
[320959880,1711721534303,-211.586413,0.0006,120]
[320959881,1711721534313,-211.586413,0.0006,120]
[320959882,1711721534323,-458.513728,0.0006,120]
[320959883,1711721534332,-238.999734,0.0006,120]
[320959884,1711721534341,-458.513728,0.0006,120]
[320959885,1711721534350,-151.0,0.0006,120]
[320959886,1711721534360,-238.999734,0.0006,120]
[320959887,1711721534369,-186.781926,0.0006,120]
[320959888,1711721534378,-151.0,0.0006,120]
[320959889,1711721534388,-151.0,0.0006,7]
[320959890,1711721534398,-186.781926,0.0006,120]
[320959891,1711721534408,-160.87430637,0.0006,60]
[320959892,1711721534418,-151.0,0.0006,120]
[320959893,1711721534428,-439.585283,0.0006,120]
[320959894,1711721534439,-151.0,0.0006,120]
[320959895,1711721534448,-439.585283,0.0006,120]
[320959896,1711721534458,-151.0,0.0006,120]
[320959897,1711721534468,-2000.0,0.0006,120]
[320959898,1711721534478,-353.13,0.0006,14]
[320959899,1711721534488,-227.00660083,0.00060006,120]
[320959900,1711721534498,-208.25028726,0.00060011,120]
[320959901,1711721534509,-500.0,0.00060023,90]
[320959902,1711721534519,-1258.83,0.00060038,2]
[320959903,1711721534529,-150.0,0.00060052,120]
[320959904,1711721534539,-233.52222222,0.00060055,120]
[320959905,1711721534549,-227.00660083,0.00060074,120]
[320959906,1711721534559,-150.0,0.00060084,120]
[320959907,1711721534569,-1000.0,0.000601,3]
[320959908,1711721534578,-152.402122,0.00060131,120]
[320959909,1711721534589,-227.00660083,0.00060141,120]
[320959910,1711721534598,-150.0,0.00060165,120]
[320959911,1711721534608,-227.00660083,0.00060208,120]
[320959912,1711721534618,-200.0,0.00060217,120]
[320959913,1711721534629,-150.0,0.00060229,120]
[320959914,1711721534638,-150.0,0.00060261,120]
[320959915,1711721534648,-666.0,0.00060273,120]
[320959916,1711721534658,-1038.05,0.00060273,120]
[320959917,1711721534668,-3000.0,0.00060273,120]
[320959918,1711721534678,-3311.84,0.00060273,120]
[320959919,1711721534688,-3031.91,0.00060274,120]
[320959920,1711721534698,-227.00660083,0.00060275,120]
[320959921,1711721534708,-150.0,0.00060278,120]
[320959922,1711721534718,-1858.6259231,0.000603,120]
[320959923,1711721534728,-227.00660083,0.00060343,120]
[320959924,1711721534738,-153.5685522,0.00060345,120]
[320959925,1711721534748,-4558.21,0.00060358,6]
[320959926,1711721534761,-4838.21,0.00060358,6]
[320959927,1711721534773,-4699.17,0.00060358,6]
[320959928,1711721534783,-4697.35,0.00060358,6]
[320959929,1711721534793,-4697.35,0.00060358,6]
[320959930,1711721534803,-605.25,0.00060358,6]
[320959931,1711721534813,-4697.35,0.00060358,6]
[320959932,1711721534823,-150.0,0.00060373,120]
[320959933,1711721534833,-150.0,0.00060391,120]
[320959934,1711721534842,-227.00660083,0.0006041,120]
[320959935,1711721534852,-800.0,0.00060454,120]
[320959936,1711721534863,-162.69772965,0.00060467,120]
[320959937,1711721534872,-227.00660083,0.00060477,120]
[320959938,1711721534882,-150.0,0.00060503,120]
[320959939,1711721534892,-150.0,0.00060518,120]
[320959940,1711721534902,-1081.49618554,0.00060536,39]
[320959941,1711721534911,-154.75081809,0.00060543,120]
[320959942,1711721534920,-227.00660083,0.00060545,120]
[320959943,1711721534929,-1038.05,0.00060547,120]
[320959944,1711721534938,-3000.0,0.00060547,120]
[320959945,1711721534947,-3311.84,0.00060547,120]
[320959946,1711721534956,-500.0,0.00060571,90]
[320959947,1711721534966,-151.0,0.00060603,120]
[320959948,1711721534975,-227.00660083,0.00060612,120]
[320959949,1711721534984,-150.0,0.00060616,120]
[320959950,1711721534993,-233.52222222,0.00060658,120]
[320959951,1711721535002,-150.0,0.00060663,120]
[320959952,1711721535013,-1729.25,0.00060673,10]
[320959953,1711721535023,-227.00660083,0.00060679,120]
[320959954,1711721535033,-150.0,0.00060679,120]
[320959955,1711721535043,-150.0,0.00060729,120]
[320959956,1711721535053,-227.00660083,0.00060746,120]
[320959957,1711721535063,-3643.91,0.00060795,6]
[320959958,1711721535071,-150.0,0.00060808,120]
[320959959,1711721535081,-227.00660083,0.00060814,120]
[320959960,1711721535091,-1038.05,0.00060821,120]
[320959961,1711721535100,-1520.3,0.00060821,120]
[320959962,1711721535109,-3000.0,0.00060821,120]
[320959963,1711721535119,-3311.84,0.00060821,120]
[320959964,1711721535128,-150.0,0.00060842,120]
[320959965,1711721535137,-227.00660083,0.00060881,120]
[320959966,1711721535147,-227.00660083,0.00060948,120]
[320959967,1711721535156,-150.0,0.00060953,120]
[320959968,1711721535166,-150.0,0.00060955,120]
[320959969,1711721535223,-1752.61,0.00060958,6]
[320959970,1711721535233,-2312.61,0.00060958,6]
[320959971,1711721535242,-2112.61,0.00060958,6]
[320959972,1711721535252,-2112.61,0.00060958,6]
[320959973,1711721535263,-2346.61,0.00060958,6]
[320959974,1711721535272,-2346.61,0.00060958,6]
[320959975,1711721535282,-2407.01,0.00060958,6]
[320959976,1711721535291,-2407.01,0.00060958,6]
[320959977,1711721535301,-548.92,0.00060958,6]
[320959978,1711721535310,-2407.01,0.00060958,6]
[320959979,1711721535320,-5000.0,0.00061,25]
[320959980,1711721535329,-462.0,0.00061,115]
[320959981,1711721535339,-227.00660083,0.00061015,120]
[320959982,1711721535348,-150.0,0.00061068,120]
[320959983,1711721535358,-227.00660083,0.00061083,120]
[320959984,1711721535368,-1038.10776621,0.00061095,120]
[320959985,1711721535378,-3000.0,0.00061095,120]
[320959986,1711721535387,-3311.88771687,0.00061095,120]
[320959987,1711721535397,-150.0,0.00061097,120]
[320959988,1711721535407,-500.0,0.00061119,90]
[320959989,1711721535416,-900.0,0.00061119,90]
[320959990,1711721535426,-152.402122,0.00061131,120]
[320959991,1711721535435,-227.00660083,0.0006115,120]
[320959992,1711721535445,-150.0,0.00061181,120]
[320959993,1711721535455,-152.0,0.00061193,4]
[320959994,1711721535465,-227.00660083,0.00061217,120]
[320959995,1711721535474,-150.0,0.00061242,120]
[320959996,1711721535484,-233.52222222,0.0006126,120]
[320959997,1711721535493,-826.18475658,0.00061271,2]
[320959998,1711721535502,-2000.0,0.00061273,120]
[320959999,1711721535513,-2000.0,0.00061273,120]
[320960000,1711721535523,-227.00660083,0.00061285,120]
[320960001,1711721535532,-153.5685522,0.00061285,120]
[320960002,1711721535542,-150.0,0.00061294,120]
[320960003,1711721535551,-227.00660083,0.00061352,120]
[320960004,1711721535561,-150.0,0.00061387,120]
[320960005,1711721535570,-900.0,0.00061393,90]
[320960006,1711721535580,-150.0,0.00061407,120]
[320960007,1711721535589,-227.00660083,0.00061419,120]
[320960008,1711721535599,-150.0,0.00061419,120]
[320960009,1711721535609,-227.00660083,0.00061486,120]
[320960010,1711721535618,-1503.92,0.00061495,6]
[320960011,1711721535628,-462.0,0.000615,116]
[320960012,1711721535637,-150.0,0.00061519,120]
[320960013,1711721535646,-150.0,0.00061532,120]
[320960014,1711721535655,-227.00660083,0.00061554,120]
[320960015,1711721535665,-1323.43,0.00061563,6]
[320960016,1711721535675,-1323.43,0.00061563,6]
[320960017,1711721535685,-1744.39,0.00061563,6]
[320960018,1711721535694,-1744.39,0.00061563,6]
[320960019,1711721535704,-2038.79,0.00061563,6]
[320960020,1711721535714,-2038.79,0.00061563,6]
[320960021,1711721535723,-2157.22,0.00061563,6]
[320960022,1711721535732,-2286.99,0.00061563,6]
[320960023,1711721535742,-2286.99,0.00061563,6]
[320960024,1711721535751,-227.00660083,0.00061621,120]
[320960025,1711721535761,-150.0,0.00061632,120]
[320960026,1711721535772,-208.25028726,0.00061633,120]
[320960027,1711721535782,-1520.3,0.00061643,120]
[320960028,1711721535791,-309.92,0.00061662,10]
[320960029,1711721535800,-500.0,0.00061667,90]
[320960030,1711721535810,-900.0,0.00061667,90]
[320960031,1711721535819,-150.0,0.00061676,120]
[320960032,1711721535829,-227.00660083,0.00061688,120]
[320960033,1711721535839,-150.0,0.00061745,120]
[320960034,1711721535849,-227.00660083,0.00061755,120]
[320960035,1711721535858,-157.60659149,0.00061759,120]
[320960036,1711721535867,-150.0,0.00061763,120]
[320960037,1711721535876,-150.0,0.00061763,120]
[320960038,1711721535886,-151.0,0.00061781,120]
[320960039,1711721535895,-500.0,0.00061795,120]
[320960040,1711721535904,-13965.33823447,0.000618,73]
[320960041,1711721535914,-1846.13171766,0.000618,73]
[320960042,1711721535923,-150.0,0.00061821,120]
[320960043,1711721535933,-227.00660083,0.00061823,120]
[320960044,1711721535943,-2000.0,0.00061828,10]
[320960045,1711721535953,-151.76103172,0.00061853,89]
[320960046,1711721535963,-150.0,0.00061858,120]
[320960047,1711721535972,-233.52222222,0.00061863,120]
[320960048,1711721535982,-227.00660083,0.0006189,120]
[320960049,1711721535991,-900.0,0.00061941,90]
[320960050,1711721536001,-227.00660083,0.00061957,120]
[320960051,1711721536012,-150.0,0.00061966,120]
[320960052,1711721536022,-150.0,0.00061971,120]
[320960053,1711721536031,-155.03328018,0.00061999,120]
[320960054,1711721536040,-541.5810525,0.00062,120]
[320960055,1711721536050,-150.0,0.00062,14]
[320960056,1711721536059,-462.0,0.00062,117]
[320960057,1711721536068,-227.00660083,0.00062025,120]
[320960058,1711721536077,-150.0,0.00062028,2]
[320960059,1711721536086,-150.0,0.00062084,120]
[320960060,1711721536095,-227.00660083,0.00062092,120]
[320960061,1711721536105,-6141.68,0.00062101,6]
[320960062,1711721536114,-150.0,0.00062111,120]
[320960063,1711721536123,-152.402122,0.00062131,120]
[320960064,1711721536132,-227.00660083,0.00062159,120]
[320960065,1711721536141,-150.0,0.00062159,120]
[320960066,1711721536150,-6456.35,0.00062165,6]
[320960067,1711721536159,-6456.35,0.00062165,6]
[320960068,1711721536168,-6616.35,0.00062165,6]
[320960069,1711721536177,-2144.52,0.00062165,6]
[320960070,1711721536187,-7144.75,0.00062165,6]
[320960071,1711721536196,-7144.75,0.00062165,6]
[320960072,1711721536205,-9205.15,0.00062165,6]
[320960073,1711721536214,-9005.15,0.00062165,6]
[320960074,1711721536223,-41369.02,0.00062165,6]
[320960075,1711721536232,-150.0,0.00062197,120]
[320960076,1711721536241,-2416.0,0.00062205,120]
[320960077,1711721536250,-500.0,0.00062215,90]
[320960078,1711721536261,-900.0,0.00062215,90]
[320960079,1711721536270,-227.00660083,0.00062226,120]
[320960080,1711721536280,-150.0,0.00062256,120]
[320960081,1711721536289,-1000.0,0.00062273,120]
[320960082,1711721536299,-2000.0,0.00062273,120]
[320960083,1711721536308,-227.00660083,0.00062294,120]
[320960084,1711721536318,-1258.83,0.00062302,2]
[320960085,1711721536328,-150.0,0.0006231,120]
[320960086,1711721536337,-200.0,0.00062317,120]
[320960087,1711721536347,-153.5685522,0.00062344,120]
[320960088,1711721536356,-227.00660083,0.00062361,120]
[320960089,1711721536366,-150.0,0.000624,120]
[320960090,1711721536376,-150.0,0.00062422,120]
[320960091,1711721536385,-227.00660083,0.00062428,120]
[320960092,1711721536395,-1520.3,0.00062465,120]
[320960093,1711721536404,-233.52222222,0.00062466,120]
[320960094,1711721536414,-900.0,0.00062489,90]
[320960095,1711721536423,-227.00660083,0.00062495,120]
[320960096,1711721536433,-446.0,0.000625,40]
[320960097,1711721536442,-150.0,0.000625,15]
[320960098,1711721536451,-462.0,0.000625,118]
[320960099,1711721536461,-150.0,0.00062535,120]
[320960100,1711721536471,-150.0,0.00062545,120]
[320960101,1711721536480,-227.00660083,0.00062563,120]
[320960102,1711721536490,-150.0,0.00062604,28]
[320960103,1711721536499,-227.00660083,0.0006263,120]
[320960104,1711721536509,-150.0,0.00062648,120]
[320960105,1711721536519,-469.89,0.00062685,120]
[320960106,1711721536528,-150.0,0.0006269,120]
[320960107,1711721536538,-227.00660083,0.00062697,120]
[320960108,1711721536548,-3917.38,0.00062713,6]
[320960109,1711721536558,-150.0,0.00062761,120]
[320960110,1711721536567,-500.0,0.00062763,90]
[320960111,1711721536577,-227.00660083,0.00062765,120]
[320960112,1711721536587,-4140.64,0.00062768,6]
[320960113,1711721536598,-4140.64,0.00062768,6]
[320960114,1711721536608,-4481.6,0.00062768,6]
[320960115,1711721536618,-4695.03,0.00062768,6]
[320960116,1711721536627,-4695.03,0.00062768,6]
[320960117,1711721536637,-4695.03,0.00062768,6]
[320960118,1711721536647,-4695.03,0.00062768,6]
[320960119,1711721536657,-800.0,0.0006279,120]
[320960120,1711721536666,-227.00660083,0.00062832,120]
[320960121,1711721536676,-150.0,0.00062835,120]
[320960122,1711721536686,-100000.0,0.0006287,120]
[320960123,1711721536696,-150.0,0.00062874,120]
[320960124,1711721536705,-227.00660083,0.00062899,120]
[320960125,1711721536714,-150.0,0.00062899,120]
[320960126,1711721536724,-500.0,0.000629,22]
[320960127,1711721536733,-1081.49618554,0.000629,42]
[320960128,1711721536745,-500.0,0.00062957,36]
[320960129,1711721536756,-151.0,0.00062959,120]
[320960130,1711721536767,-227.00660083,0.00062966,120]
[320960131,1711721536777,-150.0,0.00062979,120]
[320960132,1711721536787,-401.0,0.0006298,15]
[320960133,1711721536797,-721.52,0.0006298,15]
[320960134,1711721536807,-150.0,0.00062987,120]
[320960135,1711721536817,-393.0,0.0006299,15]
[320960136,1711721536827,-717.0,0.0006299,15]
[320960137,1711721536837,-538694.44174762,0.00062999,30]
[320960138,1711721536846,-159.065645,0.00062999,120]
[320960139,1711721536857,-151.0,0.00062999,120]
[320960140,1711721536866,-151.0,0.00062999,120]
[320960141,1711721536875,-151.0,0.00062999,14]
[320960142,1711721536885,-10496.66742925,0.00063,120]
[320960143,1711721536894,-2980647.24,0.00063,120]
[320960144,1711721536904,-151.0,0.00063,120]
[320960145,1711721536914,-151.0,0.00063,120]
[320960146,1711721536923,-261.993313,0.00063,120]
[320960147,1711721536933,-157.287613,0.00063,120]
[320960148,1711721536943,-151.0,0.00063,120]
[320960149,1711721536954,-151.0,0.00063,120]
[320960150,1711721536963,-151.0,0.00063,120]
[320960151,1711721536973,-155.738275,0.00063,120]
[320960152,1711721536982,-151.0,0.00063,120]
[320960153,1711721536991,-151.0,0.00063,120]
[320960154,1711721537001,-251.991956,0.00063,120]
[320960155,1711721537011,-251.991956,0.00063,120]
[320960156,1711721537020,-150.0,0.00063,15]
[320960157,1711721537029,-616.311373,0.00063,120]
[320960158,1711721537038,-151.0,0.00063,120]
[320960159,1711721537048,-616.311373,0.00063,120]
[320960160,1711721537058,-151.0,0.00063,120]
[320960161,1711721537068,-151.0,0.00063,120]
[320960162,1711721537078,-194.742802,0.00063,120]